bitfinex/quotes_BTCUSD_20250723
["timestamp","ask_amount","ask_price","bid_price","bid_amount"]
[1753248575273,1.50285398,118800.0,118790.0,0.0004]
[1753248578358,0.86537014,118800.0,118790.0,0.0004]
[1753248578565,1.50285398,118800.0,118790.0,0.0004]
[1753248578767,1.50285398,118800.0,118790.0,0.016]
[1753248579391,1.49986398,118800.0,118790.0,0.016]
[1753248579824,1.49986398,118800.0,118790.0,0.0377]
[1753248580036,1.89986398,118800.0,118790.0,0.0377]
[1753248581766,1.26238014,118800.0,118790.0,0.0377]
[1753248581948,1.89986398,118800.0,118790.0,0.0377]
[1753248582857,1.28646668,118800.0,118790.0,0.0377]
[1753248583088,1.41336668,118800.0,118790.0,0.0377]
[1753248584362,0.77588284,118800.0,118790.0,0.0377]
[1753248584599,1.09462476,118800.0,118790.0,0.0377]
[1753248585337,0.77588284,118800.0,118790.0,0.0377]
[1753248585570,1.09462476,118800.0,118790.0,0.0377]
[1753248587263,1.41336668,118800.0,118790.0,0.0377]
[1753248587521,1.49788398,118800.0,118790.0,0.0377]
[1753248587982,0.77588284,118800.0,118790.0,0.0377]
[1753248588216,1.09462476,118800.0,118790.0,0.0377]
[1753248588452,1.49462476,118800.0,118790.0,0.0377]
[1753248593680,1.36570476,118800.0,118790.0,0.0377]
[1753248593903,1.49462476,118800.0,118790.0,0.0377]
[1753248596325,1.17588284,118800.0,118790.0,0.0377]
[1753248596475,1.49462476,118800.0,118790.0,0.0377]
[1753248597569,1.52055021,118800.0,118790.0,0.0377]
[1753248598295,0.28951382,118800.0,118790.0,0.35644192]
[1753248598973,0.30696284,118800.0,118790.0,0.0377]
[1753248599389,0.31538013,118800.0,118790.0,0.48536192]
[1753248599710,0.28169384,118800.0,118790.0,0.66214447]
[1753248600029,0.28169384,118800.0,118790.0,0.65372626]
[1753248600655,0.27327648,118800.0,118790.0,0.65372626]
[1753248601268,0.10431139,118800.0,118790.0,0.67898005]
[1753248601484,0.11272854,118800.0,118790.0,0.67898005]
[1753248601732,0.10431125,118800.0,118790.0,0.67898005]
[1753248601926,0.1127284,118800.0,118790.0,0.67898005]
[1753248602578,0.11814569,118800.0,118790.0,0.67898005]
[1753248602807,0.1097284,118800.0,118790.0,0.68098005]
[1753248603505,0.10131125,118800.0,118790.0,0.68098005]
[1753248604129,0.10131118,118800.0,118790.0,0.68098005]
[1753248604483,0.10972833,118800.0,118790.0,0.68098005]
[1753248604698,0.11814555,118800.0,118790.0,0.68098005]
[1753248605420,0.12656347,118800.0,118790.0,0.68098005]
[1753248605630,0.29491363,118800.0,118790.0,0.68098012]
[1753248605893,0.29491412,118800.0,118790.0,0.68098012]
[1753248609296,0.28649704,118800.0,118790.0,0.68098012]
[1753248610786,0.28649704,118800.0,118790.0,0.67256233]
[1753248610997,0.27807975,118800.0,118790.0,0.67256233]
[1753248611978,0.27807975,118800.0,118790.0,0.68098019]
[1753248612400,0.57737975,118800.0,118790.0,0.68098019]
[1753248613452,0.57737975,118800.0,118790.0,0.68939798]
[1753248614939,0.57737975,118800.0,118790.0,0.68098019]
[1753248617807,0.56896239,118800.0,118790.0,0.67256233]
[1753248618018,0.56896239,118800.0,118790.0,0.35382041]
[1753248618178,0.56896239,118800.0,118790.0,0.67256233]
[1753248624281,0.56896239,118800.0,118790.0,0.35382041]
[1753248624474,0.56896239,118800.0,118790.0,0.67256233]
[1753248628867,0.56896239,118800.0,118790.0,0.68098019]
[1753248629077,0.56896239,118800.0,118790.0,0.37065606]
[1753248629649,0.56896239,118800.0,118790.0,0.68939798]
[1753248631414,0.56896239,118800.0,118790.0,0.37065606]
[1753248631641,0.56896239,118800.0,118790.0,0.68939798]
[1753248632208,0.40061223,118800.0,118790.0,0.68939798]
[1753248632415,0.40061223,118800.0,118790.0,0.6978157]
[1753248633610,0.56896239,118800.0,118790.0,0.6978157]
[1753248634052,0.40061195,118800.0,118790.0,0.6978157]
[1753248634211,0.40061153,118800.0,118790.0,0.6978157]
[1753248634438,0.00890791,118810.0,118800.0,0.22570182]
[1753248634767,0.11021851,118810.0,118800.0,0.54949374]
[1753248634997,0.09338493,118810.0,118800.0,0.54949374]
[1753248635196,0.11021767,118810.0,118800.0,0.54949374]
[1753248635402,0.11863432,118810.0,118800.0,0.54949374]
[1753248635603,0.12705104,118810.0,118800.0,0.54107673]
[1753248635780,0.12705104,118810.0,118800.0,0.55791096]
[1753248635781,0.12705167,118810.0,118800.0,0.55791096]
[1753248636194,0.11863488,118810.0,118800.0,0.56632797]
[1753248636933,0.09338493,118810.0,118800.0,0.56632797]
[1753248637192,0.11021732,118810.0,118800.0,0.24758605]
[1753248637435,0.11863376,118810.0,118800.0,0.24758605]
[1753248637674,0.12705041,118810.0,118800.0,0.88506989]
[1753248637903,0.11863376,118810.0,118800.0,0.88506989]
[1753248638118,0.12705027,118810.0,118800.0,0.88506989]
[1753248638338,0.12705076,118810.0,118800.0,0.88606989]
[1753248638802,0.12705069,118810.0,118800.0,0.88606989]
[1753248639259,0.09338479,118810.0,118800.0,0.88606989]
[1753248639760,0.10180116,118810.0,118800.0,0.88606989]
[1753248640157,0.10180116,118810.0,118800.0,0.88706989]
[1753248640368,0.11021767,118810.0,118800.0,0.88706989]
[1753248640665,0.11863432,118810.0,118800.0,0.88706989]
[1753248641119,0.10180116,118810.0,118800.0,0.88706989]
[1753248641333,0.10180116,118810.0,118800.0,0.69720797]
[1753248641693,0.11021767,118810.0,118800.0,1.01594989]
[1753248642127,0.11021767,118810.0,118800.0,0.69720797]
[1753248643255,0.11863425,118810.0,118800.0,0.69720797]
[1753248644800,0.11863425,118810.0,118800.0,1.01594989]
[1753248645437,0.1270509,118810.0,118800.0,1.01594989]
[1753248645624,0.12705139,118810.0,118800.0,0.69720797]
[1753248645778,0.28697101,118810.0,118800.0,0.68037388]
[1753248645996,0.2785545,118810.0,118800.0,0.68037388]
[1753248646448,0.2785545,118810.0,118800.0,0.55149388]
[1753248646659,0.2785545,118810.0,118800.0,0.68037388]
[1753248648729,0.26172127,118810.0,118800.0,0.03915]
[1753248648970,0.57416647,118810.0,118800.0,0.13088]
[1753248649190,0.57739647,118810.0,118800.0,0.13088]
[1753248649643,0.25865455,118810.0,118800.0,0.13088]
[1753248650292,0.59484549,118810.0,118800.0,0.002]
[1753248650527,0.62614549,118810.0,118800.0,0.13088]
[1753248651406,0.30740357,118810.0,118800.0,0.13088]
[1753248651614,0.62614549,118810.0,118800.0,0.13088]
[1753248652944,0.60994549,118810.0,118800.0,0.13088]
[1753248653631,0.62544549,118810.0,118800.0,0.13088]
[1753248655131,0.30670357,118810.0,118800.0,0.13088]
[1753248656565,0.62544549,118810.0,118800.0,0.13088]
[1753248657321,0.60994549,118810.0,118800.0,0.002]
[1753248657544,0.60994549,118810.0,118800.0,0.12988]
[1753248658195,0.60994549,118810.0,118800.0,0.12888]
[1753248658383,0.29120357,118810.0,118800.0,0.12888]
[1753248658525,0.60994549,118810.0,118800.0,0.12888]
[1753248659301,0.62594549,118810.0,118800.0,0.12888]
[1753248659931,0.30720357,118810.0,118800.0,0.12888]
[1753248660143,0.62594549,118810.0,118800.0,0.12888]
[1753248660880,0.60994549,118810.0,118800.0,0.12888]
[1753248661771,0.60994549,118810.0,118790.0,0.00250455]
[1753248661772,0.52511654,118800.0,118790.0,0.0004]
[1753248661951,0.61164384,118800.0,118790.0,0.0004]
[1753248662150,0.93362576,118800.0,118790.0,0.0004]
[1753248663171,0.93362576,118800.0,118790.0,0.0014]
[1753248663395,0.93362576,118800.0,118790.0,0.0024]
[1753248664419,0.61488384,118800.0,118790.0,0.0024]
[1753248664624,0.93362576,118800.0,118790.0,0.0024]
[1753248665756,0.63432576,118800.0,118790.0,0.0024]
[1753248666952,0.31558384,118800.0,118790.0,0.0024]
[1753248667085,0.63432576,118800.0,118790.0,0.0024]
[1753248668972,0.76320576,118800.0,118790.0,0.0024]
[1753248669819,0.76320576,118800.0,118790.0,0.0004]
[1753248673903,0.44446384,118800.0,118790.0,0.0004]
[1753248674046,0.76320576,118800.0,118790.0,0.0004]
[1753248674520,0.44446384,118800.0,118790.0,0.0004]
[1753248674920,0.42936384,118800.0,118790.0,0.0004]
[1753248675094,0.74810576,118800.0,118790.0,0.0004]
[1753248675297,0.73160576,118800.0,118790.0,0.0004]
[1753248675871,0.41286384,118800.0,118790.0,0.0004]
[1753248676049,0.73160576,118800.0,118790.0,0.0004]
[1753248677440,0.41286384,118800.0,118790.0,0.0004]
[1753248677657,0.73160576,118800.0,118790.0,0.0004]
[1753248679294,0.41286384,118800.0,118790.0,0.0004]
[1753248679427,0.73160576,118800.0,118790.0,0.0004]
[1753248680867,0.60272576,118800.0,118790.0,0.0004]
[1753248683925,0.28398384,118800.0,118790.0,0.0004]
[1753248684041,0.60272576,118800.0,118790.0,0.0004]
[1753248689277,0.65405664,118800.0,118790.0,0.0004]
[1753248689701,0.60272576,118800.0,118790.0,0.0004]
[1753248690762,0.60272576,118800.0,118790.0,0.12928]
[1753248692047,0.60272576,118800.0,118790.0,0.0004]
[1753248692970,0.28398384,118800.0,118790.0,0.0004]
[1753248693399,0.60272576,118800.0,118790.0,0.0004]
[1753248693990,0.60272576,118800.0,118790.0,0.12928]
[1753248695254,0.60272576,118800.0,118790.0,0.0004]
[1753248695398,0.60272576,118800.0,118790.0,0.12928]
[1753248696489,0.60272576,118800.0,118790.0,0.0004]
[1753248696631,0.60272576,118800.0,118790.0,0.12928]
[1753248697728,0.28398384,118800.0,118790.0,0.12928]
[1753248698189,0.60272576,118800.0,118790.0,0.12928]
[1753248700878,0.62759972,118800.0,118790.0,0.12928]
[1753248702401,0.62759972,118800.0,118790.0,0.0004]
[1753248702604,0.4377378,118800.0,118790.0,0.0004]
[1753248703036,0.75647972,118800.0,118790.0,0.0004]
[1753248704394,0.75323972,118800.0,118790.0,0.0004]
[1753248706499,0.75323972,118800.0,118790.0,0.0158]
[1753248706978,0.4344978,118800.0,118790.0,0.0158]
[1753248707193,0.75323972,118800.0,118790.0,0.0158]
[1753248708309,0.4344978,118800.0,118790.0,0.0158]
[1753248708606,0.75323972,118800.0,118790.0,0.0158]
[1753248715729,0.4344978,118800.0,118790.0,0.0158]
[1753248715930,0.75323972,118800.0,118790.0,0.0158]
[1753248716490,0.4344978,118800.0,118790.0,0.03691]
[1753248717320,0.4344978,118800.0,118790.0,0.0158]
[1753248717529,0.75323972,118800.0,118790.0,0.0158]
[1753248718371,0.4344978,118800.0,118790.0,0.0158]
[1753248718548,0.75323972,118800.0,118790.0,0.0158]
[1753248719176,0.4344978,118800.0,118790.0,0.0158]
[1753248719357,0.75323972,118800.0,118790.0,0.0158]
[1753248720116,0.4344978,118800.0,118790.0,0.0158]
[1753248720324,0.62435972,118800.0,118790.0,0.0158]
[1753248720526,0.3056178,118800.0,118790.0,0.0309]
[1753248725778,0.3056178,118800.0,118790.0,0.35160192]
[1753248726401,0.3035678,118800.0,118790.0,0.35475192]
[1753248726592,0.31198509,118800.0,118790.0,0.53153447]
[1753248726767,0.31198509,118800.0,118790.0,0.53995261]
[1753248727235,0.31198509,118800.0,118790.0,0.22121069]
[1753248727443,0.31198509,118800.0,118790.0,0.53995261]
[1753248727837,0.3035678,118800.0,118790.0,0.53995261]
[1753248729458,0.3035678,118800.0,118790.0,0.54837068]
[1753248729864,0.29515044,118800.0,118790.0,0.53995261]
[1753248731363,0.29515044,118800.0,118790.0,0.54837068]
[1753248734319,0.29515044,118800.0,118790.0,0.22962876]
[1753248734507,0.29515044,118800.0,118790.0,0.54837068]
[1753248736402,0.29515044,118800.0,118790.0,0.53995261]
[1753248737540,0.29515044,118800.0,118790.0,0.36317013]
[1753248739388,0.29515044,118800.0,118790.0,0.53153447]
[1753248740078,0.29515044,118800.0,118790.0,0.03601]
[1753248740292,0.29515044,118800.0,118790.0,0.35475192]
[1753248740507,0.29515044,118800.0,118790.0,0.03601]
[1753248741078,0.29515044,118800.0,118790.0,0.35475192]
[1753248741607,0.29515044,118800.0,118790.0,0.03601]
[1753248741813,0.29515044,118800.0,118790.0,0.35475192]
[1753248743053,0.29515044,118800.0,118790.0,0.03601]
[1753248743266,0.29515044,118800.0,118790.0,0.35475192]
[1753248745071,0.29515044,118800.0,118790.0,0.03601]
[1753248745293,0.29515044,118800.0,118790.0,0.48363192]
[1753248756465,0.27027648,118800.0,118790.0,0.65199626]
[1753248756706,0.27027648,118800.0,118790.0,0.48363192]
[1753248756910,0.27027648,118800.0,118790.0,0.66041447]
[1753248757244,0.27027648,118800.0,118790.0,0.67725068]
[1753248757638,0.27027648,118800.0,118790.0,0.66883261]
[1753248758382,0.27027648,118800.0,118790.0,0.67725068]
[1753248759778,0.27027648,118800.0,118790.0,0.66883261]
[1753248759985,0.27027648,118800.0,118790.0,0.67725068]
[1753248761210,0.27027648,118800.0,118790.0,0.68566868]
[1753248761550,0.27027648,118800.0,118790.0,0.67725068]
[1753248763595,0.27027648,118800.0,118790.0,0.66883261]
[1753248766014,0.27027648,118800.0,118790.0,0.67725068]
[1753248766577,0.27869363,118800.0,118790.0,0.68566854]
[1753248766781,0.27869363,118800.0,118790.0,0.68566868]
[1753248766990,0.27869363,118800.0,118790.0,0.69408661]
[1753248768958,0.27869363,118800.0,118790.0,0.69408626]
[1753248769637,0.27869363,118800.0,118790.0,0.67725047]
[1753248771133,0.27869363,118800.0,118790.0,0.6856684]
[1753248771375,0.27869363,118800.0,118790.0,0.69408626]
[1753248771558,0.27027648,118800.0,118790.0,0.16489]
[1753248771697,0.27027648,118800.0,118790.0,0.65199626]
[1753248771907,0.27027648,118800.0,118790.0,0.48363192]
[1753248772454,0.27243648,118800.0,118790.0,0.48363192]
[1753248772922,0.27027648,118800.0,118790.0,0.48363192]
[1753248773353,0.27027648,118800.0,118790.0,0.48359192]
[1753248775336,0.27027648,118800.0,118790.0,0.65195626]
[1753248775521,0.27027648,118800.0,118790.0,0.66037447]
[1753248777157,0.27027648,118800.0,118790.0,0.66879254]
[1753248779095,0.27027648,118800.0,118790.0,0.35005062]
[1753248779403,0.27027648,118800.0,118790.0,0.66879254]
[1753248779619,0.27027648,118800.0,118790.0,0.35846862]
[1753248779772,0.27027648,118800.0,118790.0,0.67721054]
[1753248780634,0.27027648,118800.0,118790.0,0.68562847]
[1753248781298,0.27027648,118800.0,118790.0,0.69404633]
[1753248782084,0.27869384,118800.0,118790.0,0.69404591]
[1753248783056,0.27869384,118800.0,118790.0,0.67721026]
[1753248783282,0.27869384,118800.0,118790.0,0.66879233]
[1753248783474,0.27869384,118800.0,118790.0,0.67721026]
[1753248784890,0.27869384,118800.0,118790.0,0.68562812]
[1753248785097,0.27869384,118800.0,118790.0,0.3668862]
[1753248785306,0.27869384,118800.0,118790.0,0.67721026]
[1753248786018,0.27869384,118800.0,118790.0,0.35005041]
[1753248786201,0.27869384,118800.0,118790.0,0.66037433]
[1753248787124,0.27869384,118800.0,118790.0,0.53153433]
[1753248787334,0.27869384,118800.0,118790.0,0.66033433]
[1753248787968,0.27869384,118800.0,118790.0,0.33317434]
[1753248788179,0.27027648,118800.0,118790.0,0.65191626]
[1753248788294,0.27027648,118800.0,118790.0,0.66033433]
[1753248788497,0.27869349,118800.0,118790.0,0.66033433]
[1753248789299,0.27869349,118800.0,118790.0,0.34159241]
[1753248789452,0.27869349,118800.0,118790.0,0.66033433]
[1753248790293,0.27869349,118800.0,118790.0,0.34159241]
[1753248790736,0.27869391,118800.0,118790.0,0.35001069]
[1753248790951,0.28711113,118800.0,118790.0,0.67717054]
[1753248791158,0.28711113,118800.0,118790.0,0.35842862]
[1753248791586,0.28711113,118800.0,118790.0,0.68558868]
[1753248792037,0.28711113,118800.0,118790.0,0.35842876]
[1753248792250,0.27869391,118800.0,118790.0,0.35001069]
[1753248792467,0.27027648,118800.0,118790.0,0.66033447]
[1753248792751,0.27027648,118800.0,118790.0,0.66875261]
[1753248793053,0.27027648,118800.0,118790.0,0.67717068]
[1753248793453,0.27027648,118800.0,118790.0,0.35842876]
[1753248793656,0.27027648,118800.0,118790.0,0.67717068]
[1753248794304,0.27027648,118800.0,118790.0,0.35001069]
[1753248794508,0.27027648,118800.0,118790.0,0.66875261]
[1753248794659,0.27027648,118800.0,118790.0,0.66033447]
[1753248794987,0.27027648,118800.0,118790.0,0.16481]
[1753248795444,0.22593143,118790.0,118780.0,0.023]
[1753248795661,0.24239135,118790.0,118780.0,0.023]
[1753248795915,0.23129143,118790.0,118780.0,0.023]
[1753248796135,0.19639143,118790.0,118780.0,0.023]
[1753248796369,0.20480943,118790.0,118780.0,0.0442]
[1753248796578,0.28928673,118790.0,118780.0,0.36294192]
[1753248796789,0.28928673,118790.0,118780.0,0.0442]
[1753248797203,0.28928673,118790.0,118780.0,0.34904192]
[1753248797638,0.28928673,118790.0,118780.0,0.0472]
[1753248797854,0.28928673,118790.0,118780.0,0.16358]
[1753248798062,0.28928673,118790.0,118780.0,0.48232192]
[1753248798264,0.28928673,118790.0,118780.0,0.16358]
[1753248798507,0.28928673,118790.0,118780.0,0.48022192]
[1753248798708,0.28928673,118790.0,118780.0,0.16148]
[1753248798920,0.28928673,118790.0,118780.0,0.48022192]
[1753248799339,0.28928673,118790.0,118780.0,0.16148]
[1753248809566,0.28928673,118790.0,118780.0,0.17778]
[1753248819200,0.60813977,118790.0,118780.0,0.17778]
[1753248819707,0.28928673,118790.0,118780.0,0.17778]
[1753248819922,0.60813977,118790.0,118780.0,0.17778]
[1753248820337,0.28928673,118790.0,118780.0,0.1775]
[1753248820552,0.0844773,118790.0,118780.0,0.71970624]
[1753248821192,0.0844773,118790.0,118780.0,0.4008532]
[1753248821397,0.0844773,118790.0,118780.0,0.71970624]
[1753248822360,0.09289487,118790.0,118780.0,0.71970624]
[1753248822590,0.09289495,118790.0,118780.0,0.71970624]
[1753248823193,0.09289487,118790.0,118780.0,0.68419206]
[1753248824689,0.10131259,118790.0,118780.0,0.68419206]
[1753248826850,0.09289487,118790.0,118780.0,0.68419206]
[1753248827061,0.10131259,118790.0,118780.0,0.68419206]
[1753248828271,0.10973045,118790.0,118780.0,0.68419206]
[1753248828815,0.10131259,118790.0,118780.0,0.68419206]
[1753248829329,0.09289487,118790.0,118780.0,0.68419206]
[1753248829543,0.10131259,118790.0,118780.0,0.68419206]
[1753248829743,0.10131259,118790.0,118780.0,0.4008532]
[1753248830219,0.10131259,118790.0,118780.0,0.68419206]
[1753248830440,0.10973045,118790.0,118780.0,0.68419206]
[1753248830651,0.10131259,118790.0,118780.0,0.68419206]
[1753248831093,0.10973038,118790.0,118780.0,0.68419206]
[1753248831895,0.10973038,118790.0,118780.0,0.4008532]
[1753248832095,0.10973038,118790.0,118780.0,0.68419206]
[1753248833525,0.10973038,118790.0,118780.0,0.4008532]
[1753248833734,0.10973038,118790.0,118780.0,0.68419206]
[1753248834164,0.10973038,118790.0,118780.0,0.4008532]
[1753248834489,0.10973038,118790.0,118780.0,0.68419206]
[1753248835207,0.11814824,118790.0,118780.0,0.68419206]
[1753248835379,0.11814824,118790.0,118780.0,0.54899206]
[1753248835594,0.11814824,118790.0,118780.0,0.68331206]
[1753248835820,0.11814824,118790.0,118780.0,0.3999732]
[1753248836100,0.09289487,118790.0,118780.0,0.68331206]
[1753248836313,0.10131252,118790.0,118780.0,0.68331206]
[1753248837504,0.0844773,118790.0,118780.0,0.68331206]
[1753248838506,0.03477302,118810.0,118800.0,0.22540168]
[1753248838712,0.12766655,118810.0,118800.0,0.64486054]
[1753248838919,0.13608313,118810.0,118800.0,0.64788054]
[1753248839188,0.11925011,118810.0,118800.0,0.64788054]
[1753248839412,0.12766669,118810.0,118800.0,0.64784054]
[1753248839647,0.10180109,118810.0,118800.0,0.64784054]
[1753248839906,0.08496856,118810.0,118800.0,0.64784054]
[1753248840157,0.09338486,118810.0,118800.0,0.64784054]
[1753248840407,0.09338479,118810.0,118800.0,0.64784054]
[1753248840845,0.08796856,118810.0,118800.0,0.64780054]
[1753248841051,0.08696856,118810.0,118800.0,0.9311394]
[1753248841262,0.00249126,118810.0,118800.0,1.2711394]
[1753248841524,0.00049126,118810.0,118800.0,1.2711394]
[1753248842217,0.00149126,118810.0,118800.0,1.2741394]
[1753248842661,0.00049126,118810.0,118800.0,1.2741394]
[1753248844542,0.00049126,118810.0,118800.0,1.2761394]
[1753248845956,0.00049126,118810.0,118800.0,0.70946168]
[1753248846164,0.00049126,118810.0,118800.0,1.2761394]
[1753248850525,0.00049126,118810.0,118800.0,0.70946168]
[1753248850740,0.00049126,118810.0,118800.0,1.2761394]
[1753248852664,0.00049126,118810.0,118800.0,0.70946168]
[1753248852905,0.00049126,118810.0,118800.0,1.2761394]
[1753248857363,0.00049126,118810.0,118800.0,1.34657338]
[1753248859613,0.00049126,118810.0,118800.0,0.70946168]
[1753248859825,0.00049126,118810.0,118800.0,1.34597338]
[1753248860531,0.00049126,118810.0,118800.0,1.21249338]
[1753248860736,0.00049126,118810.0,118800.0,1.34589338]
[1753248861951,0.00049126,118810.0,118800.0,1.21249338]
[1753248862125,0.00049126,118810.0,118800.0,1.34585338]
[1753248867239,0.05335104,118830.0,118820.0,0.19356924]
[1753248867442,0.43914834,118830.0,118820.0,0.32661841]
[1753248867723,0.44756358,118830.0,118820.0,0.64517426]
[1753248868376,0.44014834,118830.0,118820.0,0.64517426]
[1753248869299,0.44856358,118830.0,118820.0,0.32661841]
[1753248869598,0.44856351,118830.0,118820.0,0.64517426]
[1753248870831,0.44014834,118830.0,118820.0,0.64517426]
[1753248871224,0.43173324,118830.0,118820.0,0.64517426]
[1753248871372,0.44014826,118830.0,118820.0,0.64517426]
[1753248871783,0.44856343,118830.0,118820.0,0.64517426]
[1753248872003,0.44014826,118830.0,118820.0,0.64517426]
[1753248872213,0.44856343,118830.0,118820.0,0.64497426]
[1753248872407,0.44014826,118830.0,118820.0,0.64497426]
[1753248872609,0.42424826,118830.0,118820.0,0.64497426]
[1753248874062,0.40741836,118830.0,118820.0,0.64497426]
[1753248874296,0.38805836,118830.0,118820.0,0.64497426]
[1753248874499,0.38805836,118830.0,118820.0,0.65005426]
[1753248875308,0.38705836,118830.0,118820.0,0.65005426]
[1753248875530,0.38705836,118830.0,118820.0,0.65105426]
[1753248876297,0.38705836,118830.0,118820.0,0.65205426]
[1753248876525,0.38705836,118830.0,118820.0,0.66865426]
[1753248878001,0.38705836,118830.0,118820.0,0.35009841]
[1753248878244,0.38705836,118830.0,118820.0,0.66865426]
[1753248878498,0.38503836,118830.0,118820.0,0.68485426]
[1753248878745,0.30056106,118830.0,118820.0,1.34341011]
[1753248879266,0.30056106,118830.0,118820.0,0.70629841]
[1753248879538,0.30056106,118830.0,118820.0,0.9893643]
[1753248884451,0.00126106,118830.0,118820.0,0.70629841]
[1753248884696,0.00126106,118830.0,118820.0,0.9893643]
[1753248890156,1e-08,118830.0,118820.0,0.9893643]
[1753248890577,1e-08,118830.0,118820.0,1.27143019]
[1753248890997,1e-08,118830.0,118820.0,0.9883643]
[1753248890998,0.00100001,118830.0,118820.0,0.9913643]
[1753248891201,0.00100001,118830.0,118820.0,0.9963643]
[1753248891408,1e-08,118830.0,118820.0,0.9923643]
[1753248891770,0.00100001,118830.0,118820.0,0.9963643]
[1753248892569,1e-08,118830.0,118820.0,0.9963643]
[1753248901085,1e-08,118830.0,118820.0,1.0808416]
[1753248902721,1e-08,118830.0,118820.0,1.36390749]
[1753248905389,0.003,118850.0,118840.0,0.56433666]
[1753248905614,0.003,118850.0,118840.0,1.26409844]
[1753248905796,0.003,118850.0,118840.0,1.26706844]
[1753248906532,0.003,118850.0,118840.0,0.95520255]
[1753248906734,0.00501,118850.0,118840.0,0.95520255]
[1753248907330,0.00501,118850.0,118840.0,0.99153302]
[1753248907543,0.00501,118850.0,118840.0,0.85997302]
[1753248907755,0.04015,118850.0,118840.0,0.53653666]
[1753248907957,0.45985074,118850.0,118840.0,0.66797666]
[1753248908155,0.31814747,118850.0,118840.0,0.52812249]
[1753248908359,0.31814747,118850.0,118840.0,0.66797674]
[1753248908360,0.33497518,118850.0,118840.0,0.66797674]
[1753248908562,0.32656171,118850.0,118840.0,0.66797674]
[1753248909066,0.32656171,118850.0,118840.0,0.53653674]
[1753248909303,0.32656171,118850.0,118840.0,0.66797674]
[1753248910140,0.32656171,118850.0,118840.0,0.67639091]
[1753248910342,0.14986848,118850.0,118840.0,0.67639091]
[1753248910551,0.1246273,118850.0,118840.0,0.67639091]
[1753248910756,0.14145424,118850.0,118840.0,0.67639091]
[1753248910959,0.44075424,118850.0,118840.0,0.67639091]
[1753248911384,0.44916799,118850.0,118840.0,0.67639091]
[1753248911621,0.44916792,118850.0,118840.0,0.67639091]
[1753248912247,0.44075424,118850.0,118840.0,0.67639091]
[1753248912940,0.44075417,118850.0,118840.0,0.67639091]
[1753248913472,0.4323407,118850.0,118840.0,0.67639091]
[1753248913901,0.4239273,118850.0,118840.0,0.67639091]
[1753248914277,0.4323407,118850.0,118840.0,0.67639091]
[1753248914480,0.44075417,118850.0,118840.0,0.67639091]
[1753248914807,0.4323407,118850.0,118840.0,0.67639091]
[1753248915155,0.4239273,118850.0,118840.0,0.67639091]
[1753248915577,0.4323407,118850.0,118840.0,0.67639091]
[1753248915953,0.44075424,118850.0,118840.0,0.67639091]
[1753248916175,0.4323407,118850.0,118840.0,0.67639091]
[1753248916813,0.44075424,118850.0,118840.0,0.67639091]
[1753248917012,0.4323407,118850.0,118840.0,0.67639091]
[1753248917792,0.44075431,118850.0,118840.0,0.67639091]
[1753248919087,0.6174474,118850.0,118840.0,0.1797081]
[1753248919300,0.90961946,118850.0,118840.0,0.003]
[1753248919505,0.90120571,118850.0,118840.0,0.13424]
[1753248919689,0.61806948,118850.0,118840.0,0.13424]
[1753248920531,0.61806948,118850.0,118840.0,0.31094817]
[1753248921141,0.61806948,118850.0,118840.0,0.13424]
[1753248922071,0.31876948,118850.0,118840.0,0.003]
[1753248922304,0.60190571,118850.0,118840.0,0.13424]
[1753248922697,0.60190571,118850.0,118840.0,0.003]
[1753248922920,0.60190571,118850.0,118840.0,0.00191922]
[1753248923126,0.34402548,118850.0,118840.0,0.00191922]
[1753248923335,0.34402548,118850.0,118830.0,0.13112]
[1753248923336,0.17670803,118840.0,118830.0,0.13112]
[1753248923537,0.58087156,118840.0,118830.0,0.13112]
[1753248923947,0.60612856,118840.0,118830.0,0.13112]
[1753248926368,0.32299233,118840.0,118830.0,0.13112]
[1753248926571,0.60812856,118840.0,118830.0,0.13112]
[1753248927785,0.32499233,118840.0,118830.0,0.13112]
[1753248927997,0.60812856,118840.0,118830.0,0.13112]
[1753248931599,0.2074229,118830.0,118820.0,0.13092917]
[1753248931801,0.57706643,118830.0,118820.0,0.13092917]
[1753248932007,0.58030643,118830.0,118820.0,0.13092917]
[1753248932213,0.3224292,118830.0,118820.0,0.13092917]
[1753248933077,0.33097136,118830.0,118820.0,0.13092917]
[1753248933687,0.33097136,118830.0,118820.0,0.13192917]
[1753248936730,0.33197136,118830.0,118820.0,0.13092917]
[1753248937234,0.33297136,118830.0,118820.0,0.13092917]
[1753248937688,0.33297136,118830.0,118820.0,0.13080917]
[1753248938515,0.61610759,118830.0,118820.0,0.13080917]
[1753248941320,0.33297136,118830.0,118820.0,0.13080917]
[1753248941530,0.35864496,118830.0,118820.0,0.13080917]
[1753248942984,0.64178119,118830.0,118820.0,0.13080917]
[1753248945695,0.35864496,118830.0,118820.0,0.13080917]
[1753248945891,0.34354496,118830.0,118820.0,0.13080917]
[1753248946122,0.34333696,118830.0,118820.0,0.13080917]
[1753248948769,0.31627238,118830.0,118820.0,0.304371]
[1753248948968,0.31627238,118830.0,118820.0,0.32828709]
[1753248949370,0.31627238,118830.0,118820.0,0.15154917]
[1753248949671,0.31627238,118830.0,118820.0,0.14842917]
[1753248949848,0.31627238,118830.0,118820.0,0.13080917]
[1753248955072,0.31627238,118830.0,118820.0,0.314831]
[1753248955304,0.31627238,118830.0,118820.0,0.316781]
[1753248956009,0.30773022,118830.0,118820.0,0.304151]
[1753248956210,0.31411553,118830.0,118820.0,0.35288296]
[1753248956437,0.29727155,118830.0,118820.0,0.36129876]
[1753248956675,0.13737927,118830.0,118820.0,0.36971435]
[1753248956853,0.30568693,118830.0,118820.0,0.36971435]
[1753248957054,0.30568693,118830.0,118820.0,0.36129876]
[1753248957259,0.30568693,118830.0,118820.0,0.36971449]
[1753248958009,0.29727191,118830.0,118820.0,0.36129876]
[1753248958267,0.28906467,118830.0,118820.0,0.36129905]
[1753248958468,0.28906467,118830.0,118820.0,0.36971492]
[1753248959496,0.28906467,118830.0,118820.0,0.37813072]
[1753248960641,0.28906467,118830.0,118820.0,0.37813036]
[1753248964549,0.28906467,118830.0,118820.0,0.36129883]
[1753248964748,0.28906467,118830.0,118820.0,0.36971463]
[1753248965291,0.28906467,118830.0,118820.0,0.37813036]
[1753248965498,0.28906467,118830.0,118820.0,0.32876702]
[1753248965629,0.29110467,118830.0,118820.0,0.32876702]
[1753248966949,0.28268936,118830.0,118820.0,0.33718296]
[1753248969920,0.28268936,118830.0,118820.0,0.34559883]
[1753248972163,0.60132588,118830.0,118820.0,0.02166917]
[1753248972373,0.5929105,118830.0,118820.0,0.13040917]
[1753248973870,0.5929105,118830.0,118820.0,4.917e-05]
[1753248974241,0.5929105,118830.0,118820.0,0.13040917]
[1753248975302,0.5929105,118830.0,118820.0,0.30714709]
[1753248975441,0.27427398,118830.0,118820.0,0.33401311]
[1753248976526,0.27427398,118830.0,118820.0,0.33708311]